fUSD/lending_fUSD_20240115
["ID","MTS","AMOUNT","RATE_DAILY","PERIOD"]
[311641564,1705277454112,-1118.95,0.00030136,2]
[311641565,1705277454121,-500.0,0.00030136,2]
[311641566,1705277454131,-500.0,0.00030136,2]
[311641567,1705277454140,-564.5,0.00030136,2]
[311641568,1705277454149,-500.0,0.00030136,2]
[311641569,1705277454161,-500.60304431,0.00030136,2]
[311641570,1705277454170,-500.0,0.00030136,2]
[311641571,1705277454179,-500.0,0.00030136,2]
[311641572,1705277454189,-2491.78,0.00030136,2]
[311641573,1705277454198,-500.0,0.00030136,2]
[311641574,1705277454207,-3095.36,0.00030136,2]
[311641575,1705277454217,-500.0,0.00030136,2]
[311641576,1705277454257,-537.27,0.00030136,2]
[311641577,1705277454266,-500.0,0.00030136,2]
[311641578,1705277454292,-500.0,0.00030136,2]
[311641579,1705277454302,-500.0,0.00030136,2]
[311641580,1705277454311,-500.0,0.00030136,2]
[311641581,1705277454321,-500.0,0.00030136,2]
[311641582,1705277454330,-500.0,0.00030136,2]
[311641583,1705277454339,-1134.94,0.00030136,2]
[311641584,1705277454349,-1357.74,0.00030136,2]
[311641585,1705277454358,-500.0,0.00030136,2]
[311641586,1705277454367,-964.75,0.00030136,2]
[311641587,1705277454376,-757.24,0.00030136,2]
[311641588,1705277454385,-500.0,0.00030136,2]
[311641589,1705277454394,-500.0,0.00030136,2]
[311641590,1705277454405,-500.0,0.00030136,2]
[311641591,1705277454414,-1706.15,0.00030136,2]
[311641592,1705277454424,-8176.33,0.00030136,2]
[311641593,1705277454433,-754.74,0.00030136,2]
[311641594,1705277454444,-641.27,0.00030136,2]
[311641595,1705277454453,-500.0,0.00030136,2]
[311641596,1705277454463,-500.0,0.00030136,2]
[311641597,1705277454473,-869.38,0.00030136,2]
[311641598,1705277454482,-5976.33,0.00030136,2]
[311641599,1705277454492,-500.0,0.00030136,2]
[311641600,1705277454502,-500.0,0.00030136,2]
[311641601,1705277454511,-500.0,0.00030136,2]
[311641602,1705277454521,-500.0,0.00030136,2]
[311641603,1705277454531,-500.0,0.00030136,2]
[311641604,1705277454540,-500.0,0.00030136,2]
[311641605,1705277454553,-500.0,0.00030136,2]
[311641606,1705277454562,-632.48,0.00030136,2]
[311641607,1705277454571,-639.58,0.00030136,2]
[311641608,1705277454580,-500.0,0.00030136,2]
[311641609,1705277454590,-502.04627997,0.00030136,2]
[311641610,1705277454599,-544.53,0.00030136,2]
[311641611,1705277454608,-238.8243279,0.00030136,2]
[311641612,1705277454617,-500.0,0.00030136,2]
[311641613,1705277454627,-500.0,0.00030136,2]
[311641614,1705277454636,-1632.81,0.00030136,2]
[311641615,1705277454646,-500.0,0.00030136,2]
[311641616,1705277454658,-500.0,0.00030136,2]
[311641617,1705277454667,-2813.24,0.00030136,2]
[311641618,1705277454677,-5482.9,0.00030136,2]
[311641619,1705277454688,-500.0,0.00030136,2]
[311641620,1705277454698,-500.0,0.00030136,2]
[311641621,1705277454707,-500.0,0.00030136,2]
[311641622,1705277454717,-958.37,0.00030136,2]
[311641623,1705277454727,-975.0,0.00030136,2]
[311641624,1705277454736,-500.0,0.00030136,2]
[311641625,1705277454746,-500.0,0.00030136,2]
[311641626,1705277454756,-1188.84,0.00030136,2]
[311641627,1705277454766,-500.0,0.00030136,2]
[311641628,1705277454777,-500.0,0.00030136,2]
[311641629,1705277454788,-500.0,0.00030136,2]
[311641630,1705277454797,-500.0,0.00030136,2]
[311641631,1705277454806,-1237.2,0.00030136,2]
[311641632,1705277454816,-1015.41627298,0.00030136,2]
[311641633,1705277454825,-500.0,0.00030136,2]
[311641634,1705277454835,-500.0,0.00030136,2]
[311641635,1705277454845,-500.0,0.00030136,2]
[311641636,1705277454854,-500.0,0.00030136,2]
[311641637,1705277454864,-1319.59,0.00030136,2]
[311641638,1705277454873,-500.0,0.00030136,2]
[311641639,1705277454883,-500.0,0.00030136,2]
[311641640,1705277454892,-933.8,0.00030136,2]
[311641641,1705277454902,-2610.59,0.00030136,2]
[311641642,1705277454911,-2614.45,0.00030136,2]
[311641643,1705277454921,-500.0,0.00030136,2]
[311641644,1705277454930,-500.0,0.00030136,2]
[311641645,1705277454939,-3186.36,0.00030136,2]
[311641646,1705277454950,-833.74,0.00030136,2]
[311641647,1705277454960,-500.0,0.00030136,2]
[311641648,1705277454969,-514.97253464,0.00030136,2]
[311641649,1705277454978,-500.0,0.00030136,2]
[311641650,1705277454987,-515.9,0.00030136,2]
[311641651,1705277454997,-1220.95,0.00030136,2]
[311641652,1705277455007,-5492.08,0.00030136,2]
[311641653,1705277455016,-500.0,0.00030136,2]
[311641654,1705277455025,-500.0,0.00030136,2]
[311641655,1705277455035,-1989.19,0.00030136,2]
[311641656,1705277455047,-529.59,0.00030136,2]
[311641657,1705277455057,-722.84,0.00030136,2]
[311641658,1705277455066,-500.0,0.00030136,2]
[311641659,1705277455076,-500.0,0.00030136,2]
[311641660,1705277455086,-638.39,0.00030136,2]
[311641661,1705277455095,-521.58821303,0.00030136,30]
[311641662,1705277455104,-500.0,0.00030136,2]
[311641663,1705277455114,-500.0,0.00030136,2]
[311641664,1705277455123,-500.0,0.00030136,2]
[311641665,1705277455132,-4022.18,0.00030136,2]
[311641666,1705277455141,-753.39,0.00030136,2]
[311641667,1705277455152,-2493.03,0.00030136,2]
[311641668,1705277455161,-500.0,0.00030136,2]
[311641669,1705277455169,-699.97,0.00030136,2]
[311641670,1705277455179,-606.28,0.00030136,2]
[311641671,1705277455189,-500.0,0.00030136,2]
[311641672,1705277455198,-500.0,0.00030136,2]
[311641673,1705277455206,-500.0,0.00030136,2]
[311641674,1705277455216,-505.21482687,0.00030136,2]
[311641675,1705277455225,-500.0,0.00030136,2]
[311641676,1705277455235,-500.0,0.00030136,2]
[311641677,1705277455244,-1805.56,0.00030136,2]
[311641678,1705277455254,-500.0,0.00030136,2]
[311641679,1705277455264,-500.0,0.00030136,2]
[311641680,1705277455273,-506.26461892,0.00030136,2]
[311641681,1705277455282,-1129.32,0.00030136,2]
[311641682,1705277455291,-500.0,0.00030136,2]
[311641683,1705277455300,-1191.83,0.00030136,2]
[311641684,1705277455310,-952.46,0.00030136,2]
[311641685,1705277455319,-635.15,0.00030136,2]
[311641686,1705277455328,-500.0,0.00030136,2]
[311641687,1705277455337,-500.0,0.00030136,2]
[311641688,1705277455346,-500.0,0.00030136,2]
[311641689,1705277455356,-500.0,0.00030136,2]
[311641690,1705277455365,-2730.63,0.00030136,2]
[311641691,1705277455374,-500.0,0.00030136,2]
[311641692,1705277455383,-500.0,0.00030136,2]
[311641693,1705277455392,-155.18527112,0.00030136,2]
[311641694,1705277455401,-500.0,0.00030136,2]
[311641695,1705277455412,-500.0,0.00030136,2]
[311641696,1705277455421,-792.34,0.00030136,2]
[311641697,1705277455431,-500.0,0.00030136,2]
[311641698,1705277455440,-500.0,0.00030136,2]
[311641699,1705277455449,-500.0,0.00030136,2]
[311641700,1705277455458,-500.0,0.00030136,2]
[311641701,1705277455468,-1955.82,0.00030136,2]
[311641702,1705277455477,-500.0,0.00030136,2]
[311641703,1705277455487,-1196.3,0.00030136,2]
[311641704,1705277455496,-872.86,0.00030136,2]
[311641705,1705277455506,-500.0,0.00030136,2]
[311641706,1705277455515,-500.0,0.00030136,2]
[311641707,1705277455524,-503.91676493,0.00030136,2]
[311641708,1705277455535,-500.0,0.00030136,2]
[311641709,1705277455546,-2930.38,0.00030136,2]
[311641710,1705277455555,-563.52762795,0.00030136,2]
[311641711,1705277455564,-500.0,0.00030136,2]
[311641712,1705277455574,-734.66,0.00030136,2]
[311641713,1705277455585,-664.22,0.00030136,2]
[311641714,1705277455595,-500.0,0.00030136,2]
[311641715,1705277455603,-620.03,0.00030136,2]
[311641716,1705277455613,-1459.61,0.00030136,2]
[311641717,1705277455622,-1176.16,0.00030136,2]
[311641718,1705277455632,-2457.2,0.00030136,2]
[311641719,1705277455641,-500.0,0.00030136,2]
[311641720,1705277455650,-500.0,0.00030136,2]
[311641721,1705277455661,-500.0,0.00030136,2]
[311641722,1705277455670,-502.97110435,0.00030136,2]
[311641723,1705277455679,-1202.75,0.00030136,2]
[311641724,1705277455689,-500.0,0.00030136,2]
[311641725,1705277455698,-500.0,0.00030136,2]
[311641726,1705277455707,-1749.56,0.00030136,2]
[311641727,1705277455716,-500.0,0.00030136,2]
[311641728,1705277455725,-824.23,0.00030136,2]
[311641729,1705277455734,-500.0,0.00030136,2]
[311641730,1705277455743,-500.0,0.00030136,2]
[311641731,1705277455753,-500.0,0.00030136,2]
[311641732,1705277455762,-500.0,0.00030136,2]
[311641733,1705277455770,-500.0,0.00030136,2]
[311641734,1705277455780,-1218.21,0.00030136,2]
[311641735,1705277455789,-500.0,0.00030136,2]
[311641736,1705277455798,-673.0,0.00030136,2]
[311641737,1705277455807,-611.99983717,0.00030136,2]
[311641738,1705277455816,-500.0,0.00030136,2]
[311641739,1705277455825,-932.5,0.00030136,2]
[311641740,1705277455834,-500.0,0.00030136,2]
[311641741,1705277455843,-500.0,0.00030136,2]
[311641742,1705277455853,-182.98664842,0.00030136,2]
[311641743,1705277455862,-500.0,0.00030136,2]
[311641744,1705277455872,-500.0,0.00030136,2]
[311641745,1705277455881,-689.37,0.00030136,2]
[311641746,1705277455890,-1809.44,0.00030136,2]
[311641747,1705277455900,-558.62,0.00030136,2]
[311641748,1705277455910,-1616.85,0.00030136,2]
[311641749,1705277455919,-500.0,0.00030136,2]
[311641750,1705277455928,-577.34,0.00030136,2]
[311641751,1705277455936,-500.0,0.00030136,2]
[311641752,1705277455947,-500.0,0.00030136,2]
[311641753,1705277455956,-500.0,0.00030136,2]
[311641754,1705277455965,-500.0,0.00030136,2]
[311641755,1705277455974,-710.64,0.00030136,2]
[311641756,1705277455983,-860.54,0.00030136,2]
[311641757,1705277455992,-1356.93,0.00030136,2]
[311641758,1705277456001,-476.57589445,0.00030136,4]
[311641759,1705277456010,-500.0,0.00030136,2]
[311641760,1705277456019,-1345.44,0.00030136,2]
[311641761,1705277456028,-500.0,0.00030136,2]
[311641762,1705277456037,-500.0,0.00030136,2]
[311641763,1705277456046,-1179.27,0.00030136,2]
[311641764,1705277456055,-500.0,0.00030136,2]
[311641765,1705277456064,-1504.67,0.00030136,2]
[311641766,1705277456073,-951.57,0.00030136,2]
[311641767,1705277456082,-500.0,0.00030136,2]
[311641768,1705277456091,-1102.3,0.00030136,2]
[311641769,1705277456100,-500.0,0.00030136,2]
[311641770,1705277456109,-500.0,0.00030136,2]
[311641771,1705277456119,-13106.86,0.00030136,2]
[311641772,1705277456128,-500.0,0.00030136,2]
[311641773,1705277456137,-500.0,0.00030136,2]
[311641774,1705277456146,-500.0,0.00030136,2]
[311641775,1705277456155,-1690.87,0.00030136,2]
[311641776,1705277456163,-940.22,0.00030136,2]
[311641777,1705277456172,-505.07,0.00030136,2]
[311641778,1705277456181,-2995.14,0.00030136,2]
[311641779,1705277456190,-4220.59,0.00030136,2]
[311641780,1705277456200,-500.0,0.00030136,2]
[311641781,1705277456209,-845.86,0.00030136,2]
[311641782,1705277456218,-500.0,0.00030136,2]
[311641783,1705277456227,-500.0,0.00030136,2]
[311641784,1705277456236,-500.0,0.00030136,2]
[311641785,1705277456245,-500.0,0.00030136,2]
[311641786,1705277456254,-500.0,0.00030136,2]
[311641787,1705277456264,-500.0,0.00030136,2]
[311641788,1705277456273,-500.60511285,0.00030136,2]
[311641789,1705277456282,-500.0,0.00030136,2]
[311641790,1705277456291,-500.0,0.00030136,2]
[311641791,1705277456300,-500.0,0.00030136,2]
[311641792,1705277456309,-500.0,0.00030136,2]
[311641793,1705277456319,-500.0,0.00030136,2]
[311641794,1705277456329,-500.0,0.00030136,2]
[311641795,1705277456338,-500.0,0.00030136,2]
[311641796,1705277456347,-500.0,0.00030136,2]
[311641797,1705277456356,-500.0,0.00030136,2]
[311641798,1705277456365,-500.0,0.00030136,2]
[311641799,1705277456373,-500.0,0.00030136,2]
[311641800,1705277456382,-1276.8,0.00030136,2]
[311641801,1705277456392,-500.0,0.00030136,2]
[311641802,1705277456401,-507.605824,0.00030136,2]
[311641803,1705277456411,-500.0,0.00030136,2]
[311641804,1705277456420,-500.0,0.00030136,2]
[311641805,1705277456429,-500.0,0.00030136,2]
[311641806,1705277456438,-432.75666349,0.00030136,2]
[311641807,1705277456448,-500.0,0.00030136,2]
[311641808,1705277456457,-500.0,0.00030136,2]
[311641809,1705277456466,-1216.33,0.00030136,2]
[311641810,1705277456476,-500.0,0.00030136,2]
[311641811,1705277456485,-500.0,0.00030136,2]
[311641812,1705277456494,-16450.31,0.00030136,2]
[311641813,1705277456503,-717.5,0.00030136,2]
[311641814,1705277456513,-683.01,0.00030136,2]
[311641815,1705277456523,-5311.11,0.00030136,2]
[311641816,1705277456532,-584.56165883,0.00030136,2]
[311641817,1705277456541,-500.0,0.00030136,2]
[311641818,1705277456550,-500.0,0.00030136,2]
[311641819,1705277456559,-500.0,0.00030136,2]
[311641820,1705277456569,-500.0,0.00030136,2]
[311641821,1705277456578,-500.0,0.00030136,2]
[311641822,1705277456587,-500.0,0.00030136,2]
[311641823,1705277456596,-689.74,0.00030136,2]
[311641824,1705277456605,-4702.16,0.00030136,2]
[311641825,1705277456615,-500.0,0.00030136,2]
[311641826,1705277456624,-500.0,0.00030136,2]
[311641827,1705277456633,-500.0,0.00030136,2]
[311641828,1705277456642,-500.0,0.00030136,2]
[311641829,1705277456651,-500.0,0.00030136,2]
[311641830,1705277456661,-500.0,0.00030136,2]
[311641831,1705277456670,-500.0,0.00030136,2]
[311641832,1705277456680,-550.35,0.00030136,2]
[311641833,1705277456689,-1214.22,0.00030136,2]
[311641834,1705277456697,-500.0,0.00030136,2]
[311641835,1705277456706,-1585.8,0.00030136,2]
[311641836,1705277456715,-500.0,0.00030136,2]
[311641837,1705277456724,-1455.55,0.00030136,2]
[311641838,1705277456733,-859.24,0.00030136,2]
[311641839,1705277456742,-500.0,0.00030136,2]
[311641840,1705277456751,-222.61054645,0.00030136,2]
[311641841,1705277456760,-2411.53,0.00030136,2]
[311641842,1705277456769,-500.0,0.00030136,2]
[311641843,1705277456778,-742.69,0.00030136,2]
[311641844,1705277456788,-500.0,0.00030136,2]
[311641845,1705277456797,-501.18149414,0.00030136,2]
[311641846,1705277456807,-540.08,0.00030136,2]
[311641847,1705277456816,-208.3980143,0.00030136,2]
[311641848,1705277456825,-14102.31,0.00030136,2]
[311641849,1705277456834,-785.32,0.00030136,2]
[311641850,1705277456843,-500.0,0.00030136,2]
[311641851,1705277456852,-2366.42,0.00030136,2]
[311641852,1705277456861,-500.0,0.00030136,2]
[311641853,1705277456870,-1108.77,0.00030136,2]
[311641854,1705277456879,-761.74,0.00030136,2]
[311641855,1705277456887,-896.86,0.00030136,2]
[311641856,1705277456896,-4496.8,0.00030136,2]
[311641857,1705277456906,-1690.92,0.00030136,2]
[311641858,1705277456915,-500.0,0.00030136,2]
[311641859,1705277456925,-1482.08,0.00030136,2]
[311641860,1705277456934,-500.0,0.00030136,2]
[311641861,1705277456944,-500.0,0.00030136,2]
[311641862,1705277456953,-500.0,0.00030136,2]
[311641863,1705277456962,-272.66798799,0.00030136,2]
[311641864,1705277456971,-536.9,0.00030136,2]
[311641865,1705277456980,-714.61,0.00030136,2]
[311641866,1705277456989,-1757.02,0.00030136,2]
[311641867,1705277456998,-500.0,0.00030136,2]
[311641868,1705277457007,-286.07790507,0.00030136,2]
[311641869,1705277457217,-578.03,0.00030136,2]
[311641870,1705277457227,-840.17,0.00030136,2]
[311641871,1705277457237,-1779.86,0.00030136,2]
[311641872,1705277457246,-981.9,0.00030136,2]
[311641873,1705277457255,-500.0,0.00030136,2]
[311641874,1705277457264,-500.0,0.00030136,2]
[311641875,1705277457273,-1154.42,0.00030136,2]
[311641876,1705277457282,-539.24895076,0.00030136,2]
[311641877,1705277457292,-500.0,0.00030136,2]
[311641878,1705277457301,-500.0,0.00030136,2]
[311641879,1705277457311,-500.0,0.00030136,2]
[311641880,1705277457320,-500.0,0.00030136,2]
[311641881,1705277457329,-1925.13,0.00030136,2]
[311641882,1705277457339,-4315.17,0.00030136,2]
[311641883,1705277457348,-970.07,0.00030136,2]
[311641884,1705277457357,-599.31253262,0.00030136,2]
[311641885,1705277457366,-500.0,0.00030136,2]
[311641886,1705277457375,-1326.08,0.00030136,2]
[311641887,1705277457384,-500.0,0.00030136,2]
[311641888,1705277457393,-4000.0,0.00030136,2]
[311641889,1705277457403,-153.84,0.00030137,2]
[311641890,1705277457414,-4554.6,0.00030137,2]
[311641891,1705277457423,-155.0,0.00030137,2]
[311641892,1705277457432,-212.81147811,0.00030153,2]
[311641893,1705277457442,-166.793448,0.00030174,7]
[311641894,1705277457451,-166.793448,0.00030174,7]
[311641895,1705277457461,-738.69,0.0003018,2]
[311641896,1705277457470,-416.27,0.00030217,2]
[311641897,1705277457479,-3000.0,0.0003023,2]
[311641898,1705277457489,-5521.28288013,0.0003028,2]
[311641899,1705277457498,-500.0,0.000303,2]
[311641900,1705277457507,-500.0,0.000303,2]
[311641901,1705277457516,-500.0,0.000303,2]
[311641902,1705277457525,-500.0,0.000303,2]
[311641903,1705277457536,-500.0,0.000303,2]
[311641904,1705277457545,-500.0,0.000303,2]
[311641905,1705277457556,-500.0,0.000303,2]
[311641906,1705277457566,-500.0,0.000303,2]
[311641907,1705277457575,-500.0,0.000303,2]
[311641908,1705277457585,-500.0,0.000303,2]
[311641909,1705277457595,-500.0,0.000303,2]
[311641910,1705277457603,-500.0,0.000303,2]
[311641911,1705277457612,-500.0,0.000303,2]
[311641912,1705277457621,-500.0,0.000303,2]
[311641913,1705277457633,-500.0,0.000303,2]
[311641914,1705277457644,-500.0,0.000303,2]
[311641915,1705277457655,-500.0,0.000303,2]
[311641916,1705277457665,-500.0,0.000303,2]
[311641917,1705277457674,-500.0,0.000303,2]
[311641918,1705277457683,-500.0,0.000303,2]
[311641919,1705277457693,-500.0,0.000303,2]
[311641920,1705277457702,-500.0,0.000303,2]
[311641921,1705277457713,-500.0,0.000303,2]
[311641922,1705277457723,-500.0,0.000303,2]
[311641923,1705277457734,-500.0,0.000303,2]
[311641924,1705277457743,-500.0,0.000303,2]
[311641925,1705277457753,-500.0,0.000303,2]
[311641926,1705277457762,-500.0,0.000303,2]
[311641927,1705277457772,-500.0,0.000303,2]
[311641928,1705277457781,-500.0,0.000303,2]
[311641929,1705277457791,-500.0,0.000303,2]
[311641930,1705277457800,-500.0,0.000303,2]
[311641931,1705277457809,-500.0,0.000303,2]
[311641932,1705277457818,-500.0,0.000303,2]
[311641933,1705277457827,-500.0,0.000303,2]
[311641934,1705277457837,-500.0,0.000303,2]
[311641935,1705277457846,-500.0,0.000303,2]
[311641936,1705277457855,-500.0,0.000303,2]
[311641937,1705277457863,-500.0,0.000303,2]
[311641938,1705277457872,-500.0,0.000303,2]
[311641939,1705277457881,-500.0,0.000303,2]
[311641940,1705277457891,-500.0,0.000303,2]
[311641941,1705277457900,-500.0,0.000303,2]
[311641942,1705277457911,-500.0,0.000303,2]
[311641943,1705277457921,-500.0,0.000303,2]
[311641944,1705277457931,-500.0,0.000303,2]
[311641945,1705277457941,-500.0,0.000303,2]
[311641946,1705277457950,-500.0,0.000303,2]
[311641947,1705277457960,-500.0,0.000303,2]
[311641948,1705277457969,-500.0,0.000303,2]
[311641949,1705277457978,-500.0,0.000303,2]
[311641950,1705277457988,-1000.0,0.000303,2]
[311641951,1705277457997,-1906.82337,0.000303,2]
[311641952,1705277458007,-2000.0,0.000303,2]
[311641953,1705277458016,-1000.0,0.000303,2]
[311641954,1705277458025,-737.76,0.00030321,2]
[311641955,1705277458035,-205.0,0.00030328,4]
[311641956,1705277458044,-152.04212659,0.00030402,2]
[311641957,1705277458053,-300.0,0.00030409,2]
[311641958,1705277458062,-500.0,0.0003041,2]
[311641959,1705277458072,-449.19,0.0003041,2]
[311641960,1705277458081,-500.81744567,0.0003041,2]
[311641961,1705277458090,-500.0,0.0003041,2]
[311641962,1705277458100,-500.0,0.0003041,2]
[311641963,1705277458109,-500.0,0.0003041,2]
[311641964,1705277458119,-500.0,0.0003041,2]
[311641965,1705277458128,-500.0,0.0003041,2]
[311641966,1705277458138,-500.0,0.0003041,2]
[311641967,1705277458147,-500.0,0.0003041,2]
[311641968,1705277458158,-500.0,0.0003041,2]
[311641969,1705277458168,-500.0,0.0003041,2]
[311641970,1705277458177,-500.0,0.0003041,2]
[311641971,1705277458187,-500.0,0.0003041,2]
[311641972,1705277458196,-500.0,0.0003041,2]
[311641973,1705277458206,-500.0,0.0003041,2]
[311641974,1705277458217,-542.22,0.0003041,2]
[311641975,1705277458227,-500.0,0.0003041,2]
[311641976,1705277458236,-500.0,0.0003041,2]
[311641977,1705277458246,-687.9,0.0003041,2]
[311641978,1705277458256,-500.0,0.0003041,2]
[311641979,1705277458265,-500.0,0.0003041,2]
[311641980,1705277458276,-500.0,0.0003041,2]
[311641981,1705277458289,-500.0,0.0003041,2]
[311641982,1705277458298,-500.0,0.0003041,2]
[311641983,1705277458308,-500.0,0.0003041,2]
[311641984,1705277458317,-500.0,0.0003041,2]
[311641985,1705277458327,-349.37564961,0.0003041,2]
[311641986,1705277458338,-500.0,0.0003041,2]
[311641987,1705277458347,-500.0,0.0003041,2]
[311641988,1705277458357,-500.0,0.0003041,2]
[311641989,1705277458367,-500.0,0.0003041,2]
[311641990,1705277458377,-500.0,0.0003041,2]
[311641991,1705277458387,-500.0,0.0003041,2]
[311641992,1705277458396,-500.0,0.0003041,2]
[311641993,1705277458406,-578.66,0.0003041,2]
[311641994,1705277458416,-500.0,0.0003041,2]
[311641995,1705277458425,-500.0,0.0003041,2]
[311641996,1705277458435,-500.0,0.0003041,2]
[311641997,1705277458444,-500.0,0.0003041,2]
[311641998,1705277458453,-235.61467784,0.0003041,2]
[311641999,1705277458463,-548.4,0.0003041,2]
[311642000,1705277458472,-859.01,0.0003041,2]
[311642001,1705277458482,-500.0,0.0003041,2]
[311642002,1705277458491,-514.37988472,0.0003041,2]
[311642003,1705277458501,-500.0,0.0003041,2]
[311642004,1705277458510,-500.0,0.0003041,2]
[311642005,1705277458520,-500.0,0.0003041,2]
[311642006,1705277458529,-500.0,0.0003041,2]
[311642007,1705277458540,-500.0,0.0003041,2]
[311642008,1705277458549,-500.0,0.0003041,2]
[311642009,1705277458559,-500.0,0.0003041,2]
[311642010,1705277458569,-500.0,0.0003041,2]
[311642011,1705277458579,-500.0,0.0003041,2]
[311642012,1705277458588,-500.0,0.0003041,2]
[311642013,1705277458598,-500.0,0.0003041,2]
[311642014,1705277458608,-500.0,0.0003041,2]
[311642015,1705277458617,-500.0,0.0003041,2]
[311642016,1705277458626,-500.0,0.0003041,2]
[311642017,1705277458635,-500.0,0.0003041,2]
[311642018,1705277458645,-500.0,0.0003041,2]
[311642019,1705277458654,-500.0,0.0003041,2]
[311642020,1705277458665,-500.0,0.0003041,2]
[311642021,1705277458675,-500.0,0.0003041,2]
[311642022,1705277458684,-500.0,0.0003041,2]
[311642023,1705277458693,-500.0,0.0003041,2]
[311642024,1705277458702,-641.66,0.0003041,2]
[311642025,1705277458713,-500.0,0.0003041,2]
[311642026,1705277458722,-500.0,0.0003041,2]
[311642027,1705277458733,-500.0,0.0003041,2]
[311642028,1705277458743,-500.0,0.0003041,2]
[311642029,1705277458751,-500.0,0.0003041,2]
[311642030,1705277458761,-507.00690687,0.0003041,2]
[311642031,1705277458770,-500.0,0.0003041,2]
[311642032,1705277458779,-500.0,0.0003041,2]
[311642033,1705277458788,-553.87,0.0003041,2]
[311642034,1705277458797,-500.0,0.0003041,2]
[311642035,1705277458806,-500.0,0.0003041,2]
[311642036,1705277458816,-500.0,0.0003041,2]
[311642037,1705277458825,-500.0,0.0003041,2]
[311642038,1705277458834,-500.0,0.0003041,2]
[311642039,1705277458844,-500.0,0.0003041,2]
[311642040,1705277458853,-500.0,0.0003041,2]
[311642041,1705277458862,-325.02214795,0.0003041,2]
[311642042,1705277458871,-500.0,0.0003041,2]
[311642043,1705277458881,-743.46,0.0003041,2]
[311642044,1705277458890,-500.0,0.0003041,2]
[311642045,1705277458898,-500.0,0.0003041,2]
[311642046,1705277458908,-500.0,0.0003041,2]
[311642047,1705277458917,-500.0,0.0003041,2]
[311642048,1705277458926,-501.70169313,0.0003041,2]
[311642049,1705277458935,-500.0,0.0003041,2]
[311642050,1705277458944,-500.0,0.0003041,2]
[311642051,1705277458953,-505.34,0.0003041,2]
[311642052,1705277458962,-500.0,0.0003041,2]
[311642053,1705277458971,-500.0,0.0003041,2]
[311642054,1705277458980,-500.0,0.0003041,2]
[311642055,1705277458989,-508.4910008,0.0003041,2]
[311642056,1705277458998,-513.67310843,0.0003041,2]
[311642057,1705277459007,-500.0,0.0003041,2]
[311642058,1705277459017,-500.0,0.0003041,2]
[311642059,1705277459026,-500.0,0.0003041,2]
[311642060,1705277459035,-500.0,0.0003041,2]
[311642061,1705277459045,-500.0,0.0003041,2]
[311642062,1705277459054,-228.80027036,0.0003041,2]
[311642063,1705277459063,-500.0,0.0003041,2]